fUSD/lending_fUSD_20240630
["ID","MTS","AMOUNT","RATE_DAILY","PERIOD"]
[330684568,1719709839263,-298.20784472,0.00013688,2]
[330684570,1719709839272,-500.0,0.00013697,2]
[330684571,1719709839282,-500.0,0.00013697,2]
[330684573,1719709839292,-500.0,0.00013697,2]
[330684575,1719709839304,-500.0,0.00013698,2]
[330684576,1719709839314,-500.0,0.00013698,2]
[330684578,1719709839323,-500.0,0.00013698,2]
[330684580,1719709839338,-500.0,0.00013698,2]
[330684582,1719709839348,-500.0,0.00013698,3]
[330684583,1719709839358,-741.28,0.00013698,3]
[330684585,1719709839368,-971.32,0.00013698,3]
[330684587,1719709839378,-4023.29,0.00013698,3]
[330684588,1719709839389,-2279.83,0.00013698,3]
[330684590,1719709839398,-1145.03,0.00013698,3]
[330684591,1719709839407,-1069.31,0.00013698,3]
[330684593,1719709839416,-500.0,0.00013698,3]
[330684595,1719709839426,-1295.73,0.00013698,3]
[330684596,1719709839436,-500.0,0.00013698,3]
[330684598,1719709839446,-500.0,0.00013698,3]
[330684600,1719709839455,-500.0,0.00013698,3]
[330684602,1719709839467,-1098.09,0.00013698,3]
[330684603,1719709839477,-500.0,0.00013698,3]
[330684605,1719709839488,-500.0,0.00013698,3]
[330684607,1719709839498,-634.95,0.00013698,3]
[330684608,1719709839508,-500.0,0.00013698,3]
[330684610,1719709839518,-500.0,0.00013698,3]
[330684612,1719709839528,-500.0,0.00013698,3]
[330684614,1719709839537,-500.0,0.00013698,3]
[330684616,1719709839547,-1106.16,0.00013698,3]
[330684618,1719709839556,-500.0,0.00013698,3]
[330684619,1719709839567,-500.0,0.00013698,3]
[330684620,1719709839578,-500.0,0.00013698,3]
[330684621,1719709839587,-500.0,0.00013698,3]
[330684622,1719709839597,-500.0,0.00013698,3]
[330684623,1719709839606,-500.62,0.00013698,3]
[330684624,1719709839617,-337.87357888,0.00013698,3]
[330684625,1719709839626,-500.0,0.00013698,3]
[330684626,1719709839637,-500.0,0.00013698,3]
[330684627,1719709839647,-500.0,0.00013698,3]
[330684628,1719709839657,-957.0,0.00013698,3]
[330684629,1719709839667,-1327.76,0.00013698,3]
[330684630,1719709839677,-500.0,0.00013698,3]
[330684631,1719709839687,-500.0,0.00013698,3]
[330684632,1719709839697,-500.0,0.00013698,3]
[330684633,1719709839706,-580.53,0.00013698,3]
[330684634,1719709839716,-500.0,0.00013698,3]
[330684635,1719709839725,-1157.94,0.00013698,3]
[330684636,1719709839735,-500.0,0.00013698,3]
[330684637,1719709839745,-500.0,0.00013698,3]
[330684638,1719709839755,-374.96521283,0.00013698,3]
[330684640,1719709839771,-125.03478717,0.00013698,3]
[330684642,1719709839781,-500.0,0.00013698,3]
[330684644,1719709839791,-275.42084404,0.00013698,3]
[330684646,1719709839803,-17255.34915596,0.00013698,3]
[330684648,1719709839813,-500.0,0.00013698,3]
[330684650,1719709839822,-500.0,0.00013698,3]
[330684652,1719709839831,-500.0,0.00013698,3]
[330684654,1719709839841,-500.0,0.00013698,3]
[330684656,1719709839851,-500.0,0.00013698,3]
[330684658,1719709839860,-500.0,0.00013698,3]
[330684660,1719709839870,-2224.15,0.00013698,3]
[330684662,1719709839881,-500.0,0.00013698,3]
[330684665,1719709839892,-500.0,0.00013698,3]
[330684666,1719709839902,-700.26,0.00013698,3]
[330684668,1719709839912,-500.0,0.00013698,3]
[330684670,1719709839922,-500.0,0.00013698,3]
[330684672,1719709839931,-889.23,0.00013698,3]
[330684675,1719709839941,-500.0,0.00013698,3]
[330684677,1719709839951,-500.0,0.00013698,3]
[330684679,1719709839960,-500.0,0.00013698,3]
[330684681,1719709839971,-500.0,0.00013698,3]
[330684683,1719709839982,-500.0,0.00013698,3]
[330684685,1719709839994,-1194.62,0.00013698,3]
[330684687,1719709840005,-500.0,0.00013698,3]
[330684689,1719709840015,-500.0,0.00013698,3]
[330684691,1719709840025,-500.0,0.00013698,3]
[330684693,1719709840035,-806.6,0.00013698,3]
[330684695,1719709840045,-1229.14,0.00013698,3]
[330684697,1719709840056,-635.88,0.00013698,3]
[330684699,1719709840070,-848.03,0.00013698,3]
[330684701,1719709840080,-500.0,0.00013698,3]
[330684703,1719709840090,-1025.42,0.00013698,3]
[330684705,1719709840100,-571.07,0.00013698,3]
[330684707,1719709840110,-771.15,0.00013698,3]
[330684709,1719709840120,-500.0,0.00013698,3]
[330684711,1719709840130,-622.8,0.00013698,3]
[330684714,1719709840144,-500.0,0.00013698,3]
[330684715,1719709840154,-500.0,0.00013698,3]
[330684718,1719709840165,-692.75,0.00013698,3]
[330684720,1719709840177,-899.57,0.00013698,3]
[330684722,1719709840187,-580.15268272,0.00013698,3]
[330684724,1719709840196,-500.0,0.00013698,3]
[330684726,1719709840206,-686.36,0.00013698,3]
[330684728,1719709840216,-500.0,0.00013698,3]
[330684729,1719709840226,-500.0,0.00013698,3]
[330684732,1719709840236,-500.0,0.00013698,3]
[330684734,1719709840246,-500.0,0.00013698,3]
[330684736,1719709840256,-500.0,0.00013698,3]
[330684738,1719709840266,-1029.21,0.00013698,3]
[330684740,1719709840275,-500.0,0.00013698,3]
[330684742,1719709840285,-2420.64,0.00013698,3]
[330684744,1719709840295,-1071.66,0.00013698,3]
[330684746,1719709840305,-500.0,0.00013698,3]
[330684748,1719709840314,-500.0,0.00013698,3]
[330684749,1719709840324,-500.0,0.00013698,3]
[330684751,1719709840334,-987.76,0.00013698,3]
[330684753,1719709840344,-500.0,0.00013698,3]
[330684755,1719709840353,-500.0,0.00013698,3]
[330684757,1719709840363,-500.0,0.00013698,3]
[330684759,1719709840372,-500.0,0.00013698,3]
[330684761,1719709840382,-624.73,0.00013698,3]
[330684763,1719709840395,-761.79,0.00013698,3]
[330684765,1719709840405,-500.0,0.00013698,3]
[330684767,1719709840415,-500.0,0.00013698,3]
[330684769,1719709840425,-600.31,0.00013698,3]
[330684771,1719709840435,-500.0,0.00013698,3]
[330684773,1719709840445,-500.0,0.00013698,3]
[330684775,1719709840455,-500.0,0.00013698,3]
[330684778,1719709840467,-151.0,0.00013698,2]
[330684780,1719709840477,-500.0,0.00013698,3]
[330684781,1719709840487,-1036.09,0.00013698,3]
[330684783,1719709840497,-500.0,0.00013698,3]
[330684786,1719709840508,-582.47,0.00013698,3]
[330684788,1719709840519,-587.73,0.00013698,3]
[330684789,1719709840528,-500.0,0.00013698,3]
[330684792,1719709840538,-500.0,0.00013698,3]
[330684793,1719709840548,-500.0,0.00013698,3]
[330684796,1719709840558,-525.82,0.00013698,3]
[330684797,1719709840568,-512.47,0.00013698,3]
[330684799,1719709840578,-500.0,0.00013698,3]
[330684801,1719709840588,-500.0,0.00013698,3]
[330684803,1719709840598,-478.98347752,0.00013698,3]
[330684805,1719709840607,-500.0,0.00013698,3]
[330684807,1719709840617,-500.0,0.00013698,3]
[330684809,1719709840626,-500.0,0.00013698,3]
[330684811,1719709840638,-555.33,0.00013698,3]
[330684813,1719709840647,-500.0,0.00013698,3]
[330684815,1719709840657,-500.0,0.00013698,3]
[330684818,1719709840667,-500.0,0.00013698,3]
[330684819,1719709840676,-617.2,0.00013698,3]
[330684821,1719709840686,-500.0,0.00013698,3]
[330684823,1719709840697,-500.0,0.00013698,3]
[330684825,1719709840707,-570.44,0.00013698,3]
[330684827,1719709840716,-500.0,0.00013698,3]
[330684829,1719709840725,-500.0,0.00013698,3]
[330684831,1719709840735,-528.63,0.00013698,3]
[330684833,1719709840744,-579.96,0.00013698,3]
[330684835,1719709840754,-500.0,0.00013698,3]
[330684837,1719709840763,-500.0,0.00013698,3]
[330684839,1719709840773,-2486.42,0.00013698,3]
[330684841,1719709840783,-514.99,0.00013698,3]
[330684843,1719709840793,-520.16,0.00013698,3]
[330684845,1719709840802,-747.84,0.00013698,3]
[330684847,1719709840811,-500.0,0.00013698,3]
[330684849,1719709840821,-500.0,0.00013698,3]
[330684851,1719709840830,-500.0,0.00013698,3]
[330684853,1719709840839,-500.0,0.00013698,3]
[330684855,1719709840848,-500.0,0.00013698,3]
[330684857,1719709840857,-1133.19,0.00013698,3]
[330684859,1719709840866,-511.10049588,0.00013698,3]
[330684861,1719709840876,-538.51,0.00013698,3]
[330684863,1719709840885,-500.0,0.00013698,3]
[330684865,1719709840895,-500.0,0.00013698,3]
[330684867,1719709840904,-500.0,0.00013698,3]
[330684869,1719709840914,-500.0,0.00013698,3]
[330684871,1719709840923,-500.0,0.00013698,3]
[330684873,1719709840932,-500.0,0.00013698,3]
[330684875,1719709840942,-862.26,0.00013698,3]
[330684877,1719709840952,-500.0,0.00013698,3]
[330684879,1719709840963,-289.610534,0.00013698,2]
[330684881,1719709840972,-500.0,0.00013698,3]
[330684883,1719709840982,-500.0,0.00013698,3]
[330684885,1719709840991,-500.0,0.00013698,3]
[330684887,1719709841000,-500.0,0.00013698,3]
[330684889,1719709841011,-802.38,0.00013698,3]
[330684891,1719709841021,-1046.19,0.00013698,3]
[330684893,1719709841031,-256.226958,0.00013698,2]
[330684895,1719709841040,-500.0,0.00013698,3]
[330684897,1719709841049,-1212.39,0.00013698,3]
[330684899,1719709841059,-500.0,0.00013698,3]
[330684901,1719709841072,-521.73,0.00013698,3]
[330684903,1719709841081,-548.68,0.00013698,3]
[330684905,1719709841091,-500.0,0.00013698,3]
[330684907,1719709841100,-500.0,0.00013698,3]
[330684909,1719709841110,-500.0,0.00013698,3]
[330684911,1719709841120,-500.0,0.00013698,3]
[330684913,1719709841130,-662.43,0.00013698,3]
[330684915,1719709841140,-500.0,0.00013698,3]
[330684917,1719709841152,-532.39,0.00013698,3]
[330684919,1719709841161,-500.0,0.00013698,3]
[330684921,1719709841171,-952.19,0.00013698,3]
[330684923,1719709841180,-500.0,0.00013698,3]
[330684925,1719709841189,-500.0,0.00013698,3]
[330684927,1719709841198,-529.97,0.00013698,3]
[330684929,1719709841208,-500.0,0.00013698,3]
[330684931,1719709841217,-1104.59,0.00013698,3]
[330684933,1719709841226,-500.0,0.00013698,3]
[330684935,1719709841235,-1434.62,0.00013698,3]
[330684937,1719709841245,-632.06,0.00013698,3]
[330684939,1719709841255,-500.0,0.00013698,3]
[330684941,1719709841264,-500.0,0.00013698,3]
[330684943,1719709841272,-500.0,0.00013698,3]
[330684945,1719709841281,-500.0,0.00013698,3]
[330684947,1719709841291,-500.0,0.00013698,3]
[330684949,1719709841300,-574.9,0.00013698,3]
[330684951,1719709841310,-538.79,0.00013698,3]
[330684953,1719709841319,-500.0,0.00013698,3]
[330684955,1719709841329,-2737.34,0.00013698,3]
[330684957,1719709841338,-500.0,0.00013698,3]
[330684959,1719709841349,-411.85533745,0.00013698,3]
[330684961,1719709841358,-910.38,0.00013698,3]
[330684963,1719709841368,-500.0,0.00013698,3]
[330684965,1719709841377,-500.0,0.00013698,3]
[330684967,1719709841387,-500.0,0.00013698,3]
[330684969,1719709841397,-1322.56,0.00013698,3]
[330684971,1719709841406,-500.0,0.00013698,3]
[330684973,1719709841415,-500.0,0.00013698,3]
[330684975,1719709841425,-500.0,0.00013698,3]
[330684977,1719709841435,-500.0,0.00013698,3]
[330684979,1719709841444,-500.0,0.00013698,3]
[330684981,1719709841454,-151.0,0.00013698,2]
[330684983,1719709841464,-560.3,0.00013698,3]
[330684985,1719709841473,-272.87186738,0.00013698,3]
[330684987,1719709841483,-151.0,0.00013698,2]
[330684989,1719709841492,-602.1,0.00013698,3]
[330684991,1719709841502,-500.0,0.00013698,3]
[330684993,1719709841512,-500.0,0.00013698,3]
[330684995,1719709841522,-500.0,0.00013698,3]
[330684997,1719709841531,-500.0,0.00013698,3]
[330684999,1719709841540,-500.0,0.00013698,3]
[330685001,1719709841550,-500.0,0.00013698,3]
[330685003,1719709841559,-500.0,0.00013698,3]
[330685005,1719709841569,-500.0,0.00013698,3]
[330685007,1719709841578,-151.0,0.00013698,2]
[330685008,1719709841587,-500.0,0.00013698,3]
[330685010,1719709841597,-500.0,0.00013698,3]
[330685012,1719709841606,-500.0,0.00013698,3]
[330685014,1719709841616,-841.01,0.00013698,3]
[330685016,1719709841625,-500.0,0.00013698,3]
[330685018,1719709841635,-158.298285,0.00013698,2]
[330685020,1719709841646,-953.47,0.00013698,3]
[330685023,1719709841655,-500.0,0.00013698,3]
[330685025,1719709841665,-672.21,0.00013698,3]
[330685026,1719709841674,-500.0,0.00013698,3]
[330685028,1719709841684,-500.0,0.00013698,3]
[330685030,1719709841694,-500.0,0.00013698,3]
[330685033,1719709841703,-500.0,0.00013698,3]
[330685035,1719709841713,-500.0,0.00013698,3]
[330685037,1719709841723,-500.0,0.00013698,3]
[330685038,1719709841732,-151.0,0.00013698,2]
[330685040,1719709841741,-500.0,0.00013698,3]
[330685042,1719709841751,-728.19,0.00013698,3]
[330685044,1719709841762,-151.0,0.00013698,2]
[330685047,1719709841772,-166.62020176,0.00013698,3]
[330685048,1719709841782,-500.0,0.00013698,3]
[330685051,1719709841792,-1918.33,0.00013698,3]
[330685053,1719709841801,-2164.74,0.00013698,3]
[330685055,1719709841810,-500.0,0.00013698,3]
[330685056,1719709841820,-500.0,0.00013698,3]
[330685058,1719709841829,-500.0,0.00013698,3]
[330685061,1719709841840,-500.0,0.00013698,3]
[330685062,1719709841849,-416.9138157,0.00013698,3]
[330685064,1719709841860,-500.0,0.00013698,3]
[330685066,1719709841870,-500.0,0.00013698,3]
[330685069,1719709841880,-362.03058702,0.00013698,3]
[330685071,1719709841890,-500.0,0.00013698,3]
[330685072,1719709841900,-500.0,0.00013698,3]
[330685073,1719709841910,-500.0,0.00013698,3]
[330685074,1719709841919,-500.0,0.00013698,3]
[330685075,1719709841929,-1012.12,0.00013698,3]
[330685076,1719709841939,-151.0,0.00013698,2]
[330685077,1719709841948,-673.06,0.00013698,3]
[330685078,1719709841957,-500.0,0.00013698,3]
[330685079,1719709841967,-500.0,0.00013698,3]
[330685080,1719709841977,-500.0,0.00013698,3]
[330685081,1719709841986,-256.413738,0.00013698,2]
[330685083,1719709841995,-500.0,0.00013698,3]
[330685084,1719709842004,-500.0,0.00013698,3]
[330685086,1719709842014,-500.0,0.00013698,3]
[330685088,1719709842023,-500.0,0.00013698,3]
[330685090,1719709842032,-1185.2,0.00013698,3]
[330685092,1719709842042,-500.0,0.00013698,3]
[330685094,1719709842050,-1145.72,0.00013698,3]
[330685096,1719709842060,-500.0,0.00013698,3]
[330685098,1719709842072,-500.0,0.00013698,3]
[330685100,1719709842082,-500.0,0.00013698,3]
[330685102,1719709842091,-959.16,0.00013698,3]
[330685104,1719709842100,-1393.7,0.00013698,3]
[330685106,1719709842111,-726.22,0.00013698,3]
[330685108,1719709842120,-500.0,0.00013698,3]
[330685110,1719709842129,-500.0,0.00013698,3]
[330685112,1719709842140,-500.0,0.00013698,3]
[330685114,1719709842151,-500.0,0.00013698,3]
[330685115,1719709842160,-500.0,0.00013698,3]
[330685117,1719709842169,-500.0,0.00013698,3]
[330685119,1719709842179,-500.0,0.00013698,3]
[330685121,1719709842188,-601.07,0.00013698,3]
[330685123,1719709842197,-500.0,0.00013698,3]
[330685125,1719709842207,-583.84,0.00013698,3]
[330685127,1719709842216,-500.0,0.00013698,3]
[330685130,1719709842226,-500.0,0.00013698,3]
[330685132,1719709842235,-500.0,0.00013698,3]
[330685134,1719709842245,-590.76,0.00013698,3]
[330685136,1719709842254,-500.0,0.00013698,3]
[330685138,1719709842264,-500.0,0.00013698,3]
[330685139,1719709842273,-309.05,0.00013698,3]
[330685142,1719709842282,-500.0,0.00013698,3]
[330685144,1719709842292,-683.45,0.00013698,3]
[330685146,1719709842301,-500.0,0.00013698,3]
[330685148,1719709842311,-549.76,0.00013698,3]
[330685150,1719709842320,-500.0,0.00013698,3]
[330685152,1719709842329,-712.33,0.00013698,3]
[330685153,1719709842339,-500.0,0.00013698,3]
[330685155,1719709842348,-500.0,0.00013698,3]
[330685176,1719709842527,-500.0,0.00013698,3]
[330685180,1719709842554,-500.0,0.00013698,3]
[330685183,1719709842575,-500.0,0.00013698,3]
[330685185,1719709842584,-500.0,0.00013698,3]
[330685187,1719709842594,-500.0,0.00013698,3]
[330685189,1719709842604,-500.0,0.00013698,3]
[330685191,1719709842613,-1188.2,0.00013698,3]
[330685193,1719709842623,-500.0,0.00013698,3]
[330685195,1719709842632,-857.65,0.00013698,3]
[330685197,1719709842643,-500.0,0.00013698,3]
[330685199,1719709842652,-500.0,0.00013698,3]
[330685201,1719709842663,-500.0,0.00013698,3]
[330685203,1719709842672,-260.06557528,0.00013698,3]
[330685205,1719709842682,-500.0,0.00013698,3]
[330685207,1719709842691,-500.0,0.00013698,3]
[330685209,1719709842700,-500.0,0.00013698,3]
[330685211,1719709842710,-538.9,0.00013698,3]
[330685213,1719709842720,-519.14,0.00013698,3]
[330685216,1719709842739,-403.11619839,0.00013698,3]
[330685219,1719709842750,-1900.6,0.00013698,3]
[330685221,1719709842760,-500.0,0.00013698,3]
[330685223,1719709842771,-500.0,0.00013698,3]
[330685225,1719709842781,-500.0,0.00013698,3]
[330685227,1719709842792,-500.0,0.00013698,3]
[330685229,1719709842802,-759.26,0.00013698,3]
[330685231,1719709842812,-500.0,0.00013698,3]
[330685233,1719709842822,-500.98,0.00013698,3]
[330685235,1719709842832,-500.0,0.00013698,3]
[330685238,1719709842842,-500.0,0.00013698,3]
[330685241,1719709842852,-500.0,0.00013698,3]
[330685245,1719709842863,-500.0,0.00013698,3]
[330685249,1719709842873,-500.0,0.00013698,3]
[330685252,1719709842884,-500.0,0.00013698,3]
[330685255,1719709842895,-660.44,0.00013698,3]
[330685258,1719709842905,-525.15,0.00013698,3]
[330685260,1719709842915,-500.0,0.00013698,3]
[330685262,1719709842925,-686.06,0.00013698,3]
[330685264,1719709842935,-500.0,0.00013698,3]
[330685268,1719709842945,-500.0,0.00013698,3]
[330685271,1719709842955,-2926.52,0.00013698,3]
[330685273,1719709842964,-500.0,0.00013698,3]
[330685275,1719709842974,-500.0,0.00013698,3]
[330685277,1719709842984,-500.0,0.00013698,3]
[330685279,1719709842994,-500.0,0.00013698,3]
[330685282,1719709843004,-500.0,0.00013698,3]
[330685284,1719709843015,-726.29,0.00013698,3]
[330685286,1719709843024,-658.5,0.00013698,3]
[330685288,1719709843035,-500.0,0.00013698,2]
[330685290,1719709843045,-551.41,0.00013698,3]
[330685292,1719709843054,-1628.81,0.00013698,3]
[330685294,1719709843072,-721.44,0.00013698,3]
[330685296,1719709843084,-823.33,0.00013698,3]
[330685298,1719709843094,-500.0,0.00013698,3]
[330685300,1719709843105,-500.0,0.00013698,3]
[330685302,1719709843115,-500.0,0.00013698,3]
[330685305,1719709843126,-2346.07,0.00013698,3]
[330685307,1719709843136,-500.0,0.00013698,3]
[330685309,1719709843147,-500.0,0.00013698,3]
[330685311,1719709843158,-500.0,0.00013698,3]
[330685313,1719709843168,-500.0,0.00013698,3]
[330685315,1719709843178,-719.02,0.00013698,3]
[330685317,1719709843188,-500.0,0.00013698,3]
[330685319,1719709843197,-1070.24,0.00013698,3]
[330685321,1719709843206,-93.3716794,0.00013698,3]
[330685326,1719709843249,-406.6283206,0.00013698,3]
[330685328,1719709843259,-500.0,0.00013698,3]
[330685331,1719709843269,-500.0,0.00013698,3]
[330685333,1719709843278,-122.75803703,0.00013698,3]
[330685336,1719709843296,-377.24196297,0.00013698,3]
[330685338,1719709843306,-126.66993595,0.00013698,3]
[330685341,1719709843329,-1839.93992941,0.00013698,3]
[330685392,1719709843784,-255.47534386,0.00013452,2]
[330685394,1719709843794,-377.92465701,0.00013698,3]
[330685436,1719709844414,-100.29061497,0.00013698,3]
[330685437,1719709844426,-412.47382077,0.00013698,3]
[330685438,1719709844438,-136.13104189,0.00013698,3]
[330685439,1719709844447,-500.0,0.00013698,3]
[330685440,1719709844456,-127.31947392,0.00013698,3]
[330685441,1719709844479,-372.68052608,0.00013698,3]
[330685442,1719709844489,-500.0,0.00013698,3]
[330685443,1719709844499,-2354.02,0.00013698,3]
[330685444,1719709844509,-4540.89,0.00013698,3]
[330685445,1719709844519,-500.0,0.00013698,3]
[330685446,1719709844528,-500.0,0.00013698,3]
[330685447,1719709844538,-500.0,0.00013698,3]
[330685448,1719709844547,-765.77,0.00013698,3]
[330685449,1719709844557,-500.0,0.00013698,3]
[330685450,1719709844566,-500.0,0.00013698,3]
[330685451,1719709844576,-770.04,0.00013698,3]
[330685452,1719709844585,-500.0,0.00013698,3]
[330685453,1719709844594,-500.0,0.00013698,3]
[330685454,1719709844604,-500.0,0.00013698,3]
[330685455,1719709844613,-500.0,0.00013698,3]
[330685456,1719709844623,-1412.32,0.00013698,3]
[330685457,1719709844632,-740.48,0.00013698,3]
[330685458,1719709844642,-500.0,0.00013698,3]
[330685459,1719709844652,-500.0,0.00013698,3]
[330685460,1719709844662,-500.0,0.00013698,3]
[330685461,1719709844671,-500.0,0.00013698,3]
[330685462,1719709844680,-8652.15,0.00013698,3]
[330685463,1719709844690,-516.88,0.00013698,3]
[330685464,1719709844700,-500.0,0.00013698,3]
[330685466,1719709844709,-500.0,0.00013698,3]
[330685467,1719709844720,-500.0,0.00013698,3]
[330685468,1719709844730,-1845.21,0.00013698,3]
[330685469,1719709844740,-500.0,0.00013698,3]
[330685470,1719709844749,-500.0,0.00013698,3]
[330685471,1719709844759,-500.0,0.00013698,3]
[330685472,1719709844768,-679.59,0.00013698,3]
[330685473,1719709844778,-500.0,0.00013698,3]
[330685474,1719709845111,-500.0,0.00013698,3]
[330685475,1719709845125,-993.62,0.00013698,3]
[330685476,1719709845134,-1202.31,0.00013698,3]
[330685477,1719709845147,-1689.66,0.00013698,3]
[330685478,1719709845156,-1102.11,0.00013698,3]
[330685479,1719709845166,-500.0,0.00013698,3]
[330685480,1719709845176,-834.58,0.00013698,3]
[330685481,1719709845186,-718.68,0.00013698,3]
[330685482,1719709845195,-594.54,0.00013698,3]
[330685483,1719709845204,-509.98,0.00013698,3]
[330685484,1719709845213,-500.0,0.00013698,3]
[330685485,1719709845223,-205.256338,0.00013698,2]
[330685486,1719709845233,-205.256338,0.00013698,2]
[330685487,1719709845244,-500.0,0.00013698,3]
[330685488,1719709845254,-205.256338,0.00013698,2]
[330685489,1719709845263,-205.256338,0.00013698,2]
[330685490,1719709845273,-695.08,0.00013698,3]
[330685491,1719709845283,-1715.64,0.00013698,3]
[330685492,1719709845293,-500.0,0.00013698,3]
[330685493,1719709845304,-677.37,0.00013698,3]
[330685494,1719709845314,-710.61,0.00013698,3]
[330685495,1719709845323,-500.0,0.00013698,3]
[330685496,1719709845333,-500.0,0.00013698,3]
[330685497,1719709845342,-1185.87,0.00013698,3]
[330685498,1719709845352,-500.0,0.00013698,3]
[330685499,1719709845361,-500.0,0.00013698,3]
[330685500,1719709845371,-500.0,0.00013698,3]
[330685501,1719709845380,-500.0,0.00013698,3]
[330685502,1719709845390,-890.92,0.00013698,3]
[330685503,1719709845402,-500.0,0.00013698,3]
[330685504,1719709845411,-500.0,0.00013698,3]
[330685505,1719709845421,-4679.4,0.00013698,3]
[330685506,1719709845430,-509.78,0.00013698,3]
[330685507,1719709845442,-500.0,0.00013698,3]
[330685508,1719709845452,-500.0,0.00013698,3]
[330685509,1719709845463,-500.0,0.00013698,3]
[330685510,1719709845474,-521.0,0.00013698,3]
[330685511,1719709845484,-2858.23,0.00013698,3]
[330685512,1719709845493,-500.0,0.00013698,3]
[330685513,1719709845503,-648.84,0.00013698,3]
[330685514,1719709845513,-500.0,0.00013698,3]
[330685515,1719709845522,-1068.95,0.00013698,3]
[330685516,1719709845531,-1425.84,0.00013698,3]
[330685517,1719709845541,-500.0,0.00013698,3]
[330685518,1719709845550,-500.0,0.00013698,3]
[330685519,1719709845560,-561.84,0.00013698,3]
[330685520,1719709845569,-1533.95,0.00013698,3]
[330685521,1719709845579,-151.0,0.00013698,2]
[330685522,1719709845588,-151.0,0.00013698,2]
[330685523,1719709845597,-765.49,0.00013698,3]
[330685524,1719709845607,-737.62,0.00013698,3]
[330685525,1719709845616,-500.0,0.00013698,3]
[330685526,1719709845626,-500.0,0.00013698,3]
[330685527,1719709845635,-500.0,0.00013698,3]
[330685528,1719709845646,-540.04,0.00013698,3]
[330685529,1719709845655,-500.0,0.00013698,3]
[330685530,1719709845665,-500.0,0.00013698,3]
[330685531,1719709845674,-500.0,0.00013698,3]
[330685532,1719709845684,-1033.64,0.00013698,3]
[330685533,1719709845693,-682.93,0.00013698,3]
[330685534,1719709845702,-872.72,0.00013698,3]
[330685535,1719709845712,-500.0,0.00013698,3]
[330685536,1719709845721,-1019.89,0.00013698,3]
[330685537,1719709845731,-599.9,0.00013698,3]
[330685538,1719709845741,-247.332678,0.00013698,2]
[330685539,1719709845750,-2184.77,0.00013698,3]
[330685540,1719709845760,-598.7320315,0.00013698,3]
[330685541,1719709845769,-500.0,0.00013698,3]
[330685543,1719709845778,-1058.73,0.00013698,3]
[330685544,1719709845788,-500.0,0.00013698,3]
[330685546,1719709845797,-500.0,0.00013698,3]
[330685548,1719709845807,-823.93,0.00013698,3]
[330685550,1719709845816,-500.0,0.00013698,3]
[330685552,1719709845826,-2476.24,0.00013698,3]
[330685554,1719709845835,-500.0,0.00013698,3]
[330685556,1719709845845,-500.0,0.00013698,3]